bitfinex-derivatives/quotes_SOLF0:USTF0_20250415
["timestamp","ask_amount","ask_price","bid_price","bid_amount"]
[1744692529874,7.6718,130.37,130.36,0.05736808]
[1744692530573,11.95447921,130.38,130.36,0.05736808]
[1744692530969,4.28297921,130.38,130.36,0.05736808]
[1744692531269,4.28297921,130.37,130.32,27.88]
[1744692531470,4.28297921,130.33,130.29,27.88]
[1744692531668,4.28297921,130.32,130.29,27.88]
[1744692531870,4.28297921,130.32,130.3,7.6756]
[1744692532374,4.3335162,130.32,130.3,7.72552492]
[1744692533175,0.05053699,130.32,130.31,7.6753]
[1744692533576,0.05053699,130.32,130.3,0.04992492]
[1744692533776,12.0084162,130.32,130.3,0.04992492]
[1744692534376,12.0084162,130.32,130.3,7.72582492]
[1744692534572,4.3335162,130.32,130.3,7.72582492]
[1744692535776,0.05053699,130.32,130.31,7.6753]
[1744692536575,0.05053699,130.32,130.3,7.72562492]
[1744692539380,4.3335162,130.32,130.3,7.72562492]
[1744692540979,12.0083162,130.32,130.3,0.04992492]
[1744692541282,4.3335162,130.32,130.3,0.04992492]
[1744692541482,4.3335162,130.32,130.3,7.72552492]
[1744692541884,0.05053699,130.32,130.3,0.04992492]
[1744692542078,0.05053699,130.32,130.31,4.28297921]
[1744692542284,0.05053699,130.32,130.31,7.6753]
[1744692543084,0.05053699,130.32,130.3,12.00860413]
[1744692543583,0.05053699,130.32,130.3,7.72562492]
[1744692545687,4.28297921,130.31,130.3,0.04992492]
[1744692549086,11.95827921,130.31,130.3,0.04992492]
[1744692557293,4.28297921,130.31,130.3,0.04992492]
[1744692558091,11.95827921,130.31,130.3,0.04992492]
[1744692558494,4.28297921,130.31,130.26,32.18297921]
[1744692558795,4.28297921,130.3,130.27,7.6772]
[1744692559397,4.28297921,130.3,130.28,7.677]
[1744692559593,11.95887921,130.3,130.27,0.05643609]
[1744692559797,0.04885142,130.3,130.29,4.28297921]
[1744692559996,0.04885142,130.3,130.29,32.18297921]
[1744692560699,0.04885142,130.3,130.29,35.5765]
[1744692563599,4.33183063,130.3,130.29,27.9]
[1744692564202,12.00773063,130.3,130.29,27.9]
[1744692566201,12.00773063,130.3,130.27,0.05643609]
[1744692567205,12.00773063,130.3,130.27,7.73403609]
[1744692567608,11.95957921,130.29,130.27,0.05643609]
[1744692567807,4.28297921,130.28,130.27,0.05643609]
[1744692569305,11.96007921,130.28,130.27,0.05643609]
[1744692573001,4.28297921,130.28,130.27,0.05643609]
[1744692573200,11.95967921,130.29,130.27,0.05643609]
[1744692573596,7.6771,130.28,130.27,0.05643609]
[1744692573801,0.04885142,130.3,130.27,32.2394153]
[1744692574010,0.04885142,130.3,130.29,4.28297921]
[1744692574203,4.28297921,130.33,130.29,4.28297921]
[1744692574404,4.28297921,130.32,130.29,4.28297921]
[1744692574606,11.95807921,130.32,130.29,11.95917921]
[1744692575009,4.28297921,130.32,130.29,11.95917921]
[1744692575208,4.34164488,130.32,130.29,12.01057685]
[1744692576011,0.05866567,130.32,130.31,7.6753]
[1744692577215,0.05866567,130.32,130.3,35.5557]
[1744692578715,0.05866567,130.32,130.3,27.88]
[1744692579215,0.05866567,130.32,130.3,35.5555]
[1744692580114,0.05866567,130.32,130.31,7.6753]
[1744692580415,0.05866567,130.32,130.3,27.88]
[1744692581218,0.05866567,130.32,130.3,35.5556]
[1744692583317,0.05866567,130.32,130.31,7.6753]
[1744692584013,2.0098,130.38,130.31,7.6753]
[1744692584014,4.28297921,130.37,130.34,7.6735]
[1744692584218,6.29277921,130.38,130.34,11.95647921]
[1744692584516,7.6745,130.33,130.3,27.88]
[1744692584716,4.28297921,130.32,130.3,27.88]
[1744692585319,0.05728945,130.32,130.3,27.9380783]
[1744692586019,0.05728945,130.32,130.3,32.22105751]
[1744692586419,0.05728945,130.32,130.3,39.89655751]
[1744692587921,0.05728945,130.32,130.31,7.6753]
[1744692588111,0.05728945,130.32,130.3,27.9380783]
[1744692588112,4.34026866,130.32,130.3,27.9380783]
[1744692588623,7.6753,130.31,130.3,27.9380783]
[1744692589018,4.34026866,130.32,130.3,27.9380783]
[1744692589218,12.01526866,130.32,130.3,27.9380783]
[1744692589519,0.05728945,130.32,130.3,27.9380783]
[1744692589724,7.73208945,130.32,130.3,27.9380783]
[1744692592220,12.01506866,130.32,130.3,27.9380783]
[1744692593316,0.05728945,130.32,130.3,27.9380783]
[1744692593619,0.05728945,130.32,130.3,39.89665751]
[1744692593820,0.05728945,130.32,130.3,32.22105751]
[1744692594923,4.34026866,130.32,130.3,27.9380783]
[1744692595119,4.28297921,130.31,130.3,27.9380783]
[1744692595622,4.34026866,130.32,130.3,27.9380783]
[1744692595823,0.05728945,130.32,130.3,27.9380783]
[1744692596524,0.05728945,130.32,130.3,35.6134783]
[1744692596723,0.05728945,130.32,130.3,32.22105751]
[1744692598325,0.05728945,130.32,130.31,7.6753]
[1744692598522,552.48,130.45,130.31,4.28297921]
[1744692598724,4.28297921,130.42,130.37,4.28297921]
[1744692598926,4.28297921,130.42,130.37,32.16297921]
[1744692599228,4.28297921,130.41,130.38,7.6712]
[1744692599627,4.28297921,130.4,130.38,0.05621114]
[1744692601126,14.36108519,130.4,130.38,0.05621114]
[1744692601325,6.69088519,130.4,130.38,0.05621114]
[1744692601630,7.6706,130.39,130.38,0.05621114]
[1744692602426,14.36118519,130.4,130.38,0.05621114]
[1744692603430,7.6706,130.39,130.38,0.05621114]
[1744692604728,6.69088519,130.4,130.38,0.05621114]
[1744692607637,6.69088519,130.4,130.38,7.72731114]
[1744692608237,0.05618812,130.41,130.38,0.05621114]
[1744692609237,0.05618812,130.41,130.4,7.67]
[1744692612343,0.05618812,130.41,130.4,35.53]
[1744692612542,14.35768519,130.46,130.43,7.6682]
[1744692612942,6.69088519,130.46,130.43,7.6682]
[1744692613143,6.69088519,130.46,130.4,34.55088519]
[1744692613443,6.69088519,130.44,130.4,27.86]
[1744692613649,7.6686,130.43,130.42,0.05222696]
[1744692614739,35.52,130.43,130.37,27.86]
[1744692614936,6.69088519,130.38,130.34,27.86]
[1744692615335,7.6719,130.37,130.34,27.86]
[1744692615848,6.69088519,130.36,130.34,27.90889477]
[1744692616043,6.69088519,130.36,130.34,0.04889477]
[1744692616545,7.673,130.35,130.34,0.04889477]
[1744692616944,6.69088519,130.36,130.34,0.04889477]
[1744692617449,14.36358519,130.36,130.34,0.04889477]
[1744692621055,7.673,130.35,130.34,0.04889477]
[1744692621749,14.36348519,130.36,130.34,0.04889477]
[1744692622756,7.673,130.35,130.34,0.04889477]
[1744692623150,6.69088519,130.36,130.34,0.04889477]
[1744692623358,0.05859993,130.37,130.34,0.04889477]
[1744692623557,0.05859993,130.37,130.34,27.92889477]
[1744692623955,0.05859993,130.37,130.34,35.60229477]
[1744692624455,7.73049993,130.37,130.34,35.60229477]
[1744692624953,7.73049993,130.37,130.34,27.92889477]
[1744692625355,0.05859993,130.37,130.34,27.92889477]
[1744692625557,6.69088519,130.36,130.34,0.04889477]
[1744692626057,7.673,130.35,130.34,0.04889477]
[1744692628955,14.36338519,130.36,130.34,0.04889477]
[1744692629161,0.05859993,130.37,130.34,0.04889477]
[1744692629959,0.05859993,130.37,130.35,27.88]
[1744692630162,0.05859993,130.37,130.35,34.57088519]
[1744692630565,0.05859993,130.37,130.35,27.88]
[1744692631063,0.05859993,130.37,130.34,0.04889477]
[1744692631263,6.69088519,130.36,130.34,0.04889477]
[1744692631864,7.673,130.35,130.34,0.04889477]
[1744692632963,6.69088519,130.36,130.29,27.94]
[1744692633165,6.69088519,130.33,130.29,27.94]
[1744692633559,7.6752,130.32,130.29,27.94]
[1744692633963,7.73215733,130.32,130.29,27.99764741]
[1744692634663,0.05695733,130.32,130.29,35.67404741]
[1744692634859,0.05695733,130.32,130.29,27.99764741]
[1744692635166,0.05695733,130.32,130.3,7.6759]
[1744692635561,0.05695733,130.32,130.29,27.99764741]
[1744692635861,0.05695733,130.32,130.31,7.6753]
[1744692637468,6.69088519,130.39,130.32,6.69088519]
[1744692637668,14.36188519,130.39,130.33,27.94]
[1744692637969,14.36188519,130.39,130.36,7.6723]
[1744692638468,14.4141234,130.39,130.36,0.05366709]
[1744692639068,6.7431234,130.39,130.36,0.05366709]
[1744692639263,6.69088519,130.37,130.36,0.05366709]
[1744692639668,14.36268519,130.37,130.36,0.05366709]
[1744692642269,6.69088519,130.37,130.36,0.05366709]
[1744692642470,6.7431234,130.39,130.36,0.05366709]
[1744692643365,7.6715,130.38,130.36,0.05366709]
[1744692643872,7.6718,130.37,130.36,0.05366709]
[1744692644071,14.36268519,130.37,130.36,0.05366709]
[1744692644969,7.6736,130.34,130.33,27.94]
[1744692645171,6.69088519,130.35,130.3,27.94]
[1744692645672,7.6743,130.33,130.3,35.6156]
[1744692646072,7.73180045,130.33,130.3,35.66848736]
[1744692646372,0.05750045,130.33,130.3,27.99288736]
[1744692647168,6.74838564,130.33,130.3,27.99288736]
[1744692648172,7.6751,130.32,130.3,27.99288736]
[1744692649270,14.42278564,130.33,130.3,27.99288736]
[1744692649470,6.74838564,130.33,130.3,27.99288736]
[1744692650176,6.74838564,130.33,130.3,35.66858736]
[1744692650972,14.42268564,130.33,130.3,35.66858736]
[1744692653479,0.05750045,130.33,130.3,34.68377255]
[1744692654175,14.36358519,130.36,130.33,7.6737]
[1744692654381,27.94,130.38,130.33,27.94]
[1744692654678,6.69088519,130.39,130.33,27.94]
[1744692654883,7.6721,130.37,130.34,7.6735]
[1744692655275,7.72255742,130.37,130.34,7.72646875]
[1744692655580,7.6725,130.36,130.34,0.05296875]
[1744692656378,0.05045742,130.37,130.34,0.05296875]
[1744692657078,0.05045742,130.37,130.35,7.6726]
[1744692657381,0.05045742,130.37,130.36,27.94]
[1744692664387,0.05045742,130.37,130.36,35.6124]
[1744692664884,6.69088519,130.43,130.36,34.63088519]
[1744692665089,6.69088519,130.43,130.37,6.3422]
[1744692665592,6.69088519,130.41,130.36,27.94]
[1744692665893,6.69088519,130.39,130.37,0.05026362]
[1744692666088,6.69088519,130.39,130.37,0.05719149]
[1744692667190,7.6712,130.38,130.37,0.05719149]
[1744692668595,14.36178519,130.39,130.37,0.05719149]
[1744692669590,7.6712,130.38,130.37,0.05719149]
[1744692669897,6.69088519,130.39,130.37,0.05719149]
[1744692670296,14.36188519,130.39,130.37,0.05719149]
[1744692670496,6.69088519,130.39,130.37,0.05719149]
[1744692671098,7.6712,130.38,130.37,0.05719149]
[1744692672399,14.36178519,130.39,130.37,0.05719149]
[1744692673000,6.69088519,130.39,130.37,0.05719149]
[1744692673297,7.6712,130.38,130.37,0.05719149]
[1744692675202,11.95394809,130.38,130.37,0.05719149]
[1744692676199,4.28274809,130.39,130.37,0.05719149]
[1744692676400,0.05120972,130.4,130.38,4.28274809]
[1744692676597,0.05120972,130.4,130.39,32.14274809]
[1744692676796,7.6678,130.44,130.39,32.14274809]
[1744692677090,27.86,130.5,130.42,4.28274809]
[1744692677295,11.95074809,130.44,130.42,27.86]
[1744692677598,4.28274809,130.43,130.42,27.86]
[1744692677795,4.28274809,130.43,130.39,27.86]
[1744692677996,4.28274809,130.42,130.41,0.05888776]
[1744692678499,11.95164809,130.42,130.41,0.05888776]
[1744692679198,14.35876768,130.42,130.41,0.05888776]
[1744692680201,7.6685,130.43,130.41,0.05888776]
[1744692680603,6.74252551,130.44,130.41,0.05888776]
[1744692681303,14.35876768,130.42,130.41,0.05888776]
[1744692685402,7.67,130.4,130.39,27.86]
[1744692685599,6.68986768,130.4,130.36,27.86]
[1744692686003,7.6707,130.39,130.36,27.86]
[1744692686600,7.6713,130.38,130.36,27.91408898]
[1744692686802,0.05226314,130.39,130.36,27.91408898]
[1744692687104,7.72336314,130.39,130.36,27.91408898]
[1744692687505,0.05226314,130.39,130.36,27.91408898]
[1744692687805,7.72316314,130.39,130.36,27.91408898]
[1744692688207,7.72316314,130.39,130.36,35.58638898]
[1744692688805,0.05226314,130.39,130.38,7.6712]
[1744692689306,0.05226314,130.39,130.37,7.6717]
[1744692690605,0.05226314,130.39,130.36,35.58618898]
[1744692690805,0.05226314,130.39,130.36,27.91408898]
[1744692692212,7.6715,130.38,130.36,27.91408898]
[1744692692411,6.68986768,130.37,130.36,0.05408898]
[1744692692907,14.36166768,130.37,130.36,0.05408898]
[1744692693712,6.68986768,130.37,130.32,28.06]
[1744692694014,6.68986768,130.35,130.32,28.06]
[1744692694513,7.674,130.34,130.32,28.06]
[1744692694717,7.72356284,130.34,130.32,28.11367444]
[1744692696109,14.36406768,130.33,130.32,28.11367444]
[1744692696305,14.36406768,130.33,130.32,0.05367444]
[1744692698918,0.04956284,130.34,130.32,28.11367444]
[1744692699619,0.04956284,130.34,130.33,7.6742]
[1744692700414,0.04956284,130.34,130.32,28.11367444]
[1744692700614,6.73943052,130.34,130.32,28.11367444]
[1744692701117,4.28586171,130.33,130.32,28.11367444]
[1744692701322,4.33542455,130.34,130.32,28.11367444]
[1744692702718,4.33542455,130.34,130.32,35.78817444]
[1744692702920,0.04956284,130.34,130.32,35.78817444]
[1744692703120,2.1713,130.4,130.33,4.28586171]
[1744692703321,4.28586171,130.39,130.36,7.6724]
[1744692703619,4.28586171,130.39,130.36,35.7324]
[1744692704220,4.34127303,130.39,130.37,7.6717]
[1744692704619,4.34127303,130.39,130.36,28.11611586]
[1744692705118,0.05541132,130.39,130.36,28.11611586]
[1744692705620,0.05541132,130.39,130.36,35.78821586]
[1744692706517,7.72611132,130.39,130.36,28.11611586]
[1744692707116,7.6713,130.38,130.36,28.11611586]
[1744692713321,14.41694811,130.39,130.36,28.11611586]
[1744692713528,0.05541132,130.39,130.36,35.78831586]
[1744692714027,0.05541132,130.39,130.37,7.6717]
[1744692716329,0.05541132,130.39,130.38,7.6712]
[1744692716824,0.05541132,130.39,130.37,7.6716]
[1744692718931,7.72611132,130.39,130.36,35.78821586]
[1744692722435,0.05541132,130.39,130.36,28.11611586]
[1744692722634,0.05541132,130.39,130.36,34.80675265]
[1744692723531,0.05541132,130.39,130.37,7.6713]
[1744692724236,0.05541132,130.39,130.38,7.6712]
[1744692725438,0.05541132,130.39,130.37,11.95247111]
[1744692726537,4.33638243,130.39,130.36,35.78831586]
[1744692727741,0.05541132,130.39,130.36,35.78831586]
[1744692728443,4.33638243,130.39,130.36,28.11611586]
[1744692728744,4.28097111,130.37,130.36,0.05611586]
[1744692729145,4.28097111,130.37,130.32,27.9]
[1744692729346,4.28097111,130.34,130.32,27.9]
[1744692729545,11.95427111,130.35,130.32,27.9]
[1744692730239,12.01171153,130.35,130.32,27.94928438]
[1744692731648,12.01171153,130.35,130.32,35.62398438]
[1744692731949,7.73074042,130.35,130.32,35.62398438]
[1744692732247,12.01171153,130.35,130.32,27.94928438]
[1744692732551,7.6736,130.34,130.32,27.94928438]
[1744692732848,4.33841153,130.35,130.32,27.94928438]
[1744692733448,12.01161153,130.35,130.32,27.94928438]
[1744692734551,4.28097111,130.33,130.32,27.94928438]
[1744692735951,4.28097111,130.34,130.32,27.94928438]
[1744692736647,4.33841153,130.35,130.32,27.94928438]
[1744692737254,7.6738,130.34,130.32,27.94928438]
[1744692739953,4.33841153,130.35,130.32,35.62398438]
[1744692740148,0.05744042,130.35,130.32,39.90495549]
[1744692740751,0.05744042,130.35,130.33,11.95467111]
[1744692740952,0.05744042,130.35,130.33,4.28097111]
[1744692741557,0.05744042,130.35,130.32,39.90465549]
[1744692741949,0.05744042,130.35,130.33,7.674]
[1744692742652,0.05744042,130.35,130.33,35.574]
[1744692742853,0.05744042,130.35,130.33,39.85497111]
[1744692743051,0.05744042,130.35,130.33,32.18097111]
[1744692743457,0.05744042,130.35,130.33,27.9]
[1744692743956,0.05744042,130.35,130.33,35.5741]
[1744692744851,0.05744042,130.35,130.34,7.6736]
[1744692745055,27.9,130.4,130.34,7.6736]
[1744692745056,4.28097111,130.4,130.34,4.28097111]
[1744692745258,4.28097111,130.38,130.33,38.51427111]
[1744692745457,11.95247111,130.38,130.34,7.6732]
[1744692746257,0.05570098,130.37,130.35,0.05544727]
[1744692746956,0.05570098,130.37,130.36,39.85337111]
[1744692747155,4.28097111,130.43,130.39,4.28097111]
[1744692747351,4.28097111,130.43,130.39,32.18097111]
[1744692747557,7.6694,130.42,130.39,32.18097111]
[1744692747755,4.28097111,130.41,130.39,27.9]
[1744692747961,4.28097111,130.4,130.39,27.9]
[1744692748257,11.95097111,130.4,130.39,0.05580339]
[1744692750955,4.28097111,130.4,130.39,0.05580339]
[1744692751159,0.05870342,130.41,130.39,0.05580339]
[1744692751355,4.33967453,130.41,130.39,0.05580339]
[1744692751561,4.28097111,130.4,130.39,0.05580339]
[1744692751959,11.95097111,130.4,130.39,0.05580339]
[1744692752461,7.67,130.4,130.39,0.05580339]
[1744692752650,0.05870342,130.41,130.39,4.3367745]
[1744692752858,0.05870342,130.41,130.4,32.18097111]
[1744692753463,0.05870342,130.41,130.4,39.85097111]
[1744692753761,4.28097111,130.46,130.4,32.18097111]
[1744692753963,4.28097111,130.46,130.42,4.28097111]
[1744692754156,4.28097111,130.48,130.44,4.28097111]
[1744692754357,4.28097111,130.49,130.45,4.28097111]
[1744692754557,27.9,130.52,130.46,4.28097111]
[1744692754757,0.05793799,130.48,130.47,28.04]
[1744692754953,4.28097111,130.53,130.47,32.32097111]
[1744692755264,11.94297111,130.54,130.49,0.05061104]
[1744692755458,11.94297111,130.54,130.5,28.04]
[1744692756263,11.94297111,130.54,130.5,32.32097111]
[1744692756567,7.6626,130.53,130.5,32.32097111]
[1744692756766,7.6626,130.53,130.5,28.04]
[1744692757968,7.6631,130.52,130.5,28.04]
[1744692759368,7.6631,130.52,130.49,4.33158215]
[1744692759570,7.6631,130.52,130.49,32.37158215]
[1744692759969,4.28097111,130.52,130.49,28.09061104]
[1744692760569,11.94517111,130.5,130.49,28.09061104]
[1744692760965,7.6642,130.5,130.49,28.09061104]
[1744692765970,34.71900014,130.55,130.49,28.09061104]
[1744692766170,6.2623,130.57,130.5,6.67900014]
[1744692766370,6.2623,130.57,130.52,0.05696542]
[1744692766571,6.2623,130.57,130.52,28.07696542]
[1744692766872,7.6622,130.54,130.52,28.07696542]
[1744692767068,6.67900014,130.56,130.52,28.07696542]
[1744692767572,7.6624,130.53,130.52,28.07696542]
[1744692768271,7.6619,130.54,130.52,28.07696542]
[1744692768675,7.6624,130.53,130.52,28.07696542]
[1744692769269,6.67900014,130.56,130.52,28.07696542]
[1744692769666,7.6622,130.54,130.52,28.07696542]
[1744692770673,7.6624,130.53,130.52,28.07696542]
[1744692771270,7.662,130.54,130.52,28.07696542]
[1744692771470,6.67900014,130.56,130.52,28.07696542]
[1744692772775,7.6624,130.53,130.52,28.07696542]
[1744692773673,7.6621,130.54,130.52,28.07696542]
[1744692774670,7.6624,130.53,130.52,28.07696542]
[1744692785376,11.9344798,130.54,130.52,28.07696542]
[1744692785583,7.6621,130.54,130.52,28.07696542]
[1744692787183,7.6615,130.55,130.52,32.34934522]
[1744692787481,384.94,130.61,130.53,4.2723798]
[1744692787685,7.66,130.58,130.55,4.2723798]
[1744692787886,4.2723798,130.59,130.56,0.05839388]
[1744692789186,11.9317798,130.59,130.56,0.05839388]
[1744692790987,7.6595,130.58,130.56,0.05839388]
[1744692791185,4.2723798,130.58,130.56,0.05839388]
[1744692792490,4.2723798,130.57,130.56,0.05839388]
[1744692792682,4.2723798,130.58,130.56,0.05839388]
[1744692792882,4.2723798,130.59,130.56,0.05839388]
[1744692793189,4.2723798,130.6,130.56,4.33077368]
[1744692793378,4.2723798,130.6,130.56,0.05839388]
[1744692793581,7.6584,130.6,130.57,4.2723798]
[1744692793787,7.6584,130.6,130.58,27.94]
[1744692794286,11.9296798,130.62,130.58,39.8714798]
[1744692794787,4.2723798,130.62,130.59,0.04864612]
[1744692795588,4.2723798,130.63,130.59,11.97982592]
[1744692796289,4.2723798,130.64,130.6,11.9306798]
[1744692796482,4.2723798,130.64,130.61,27.94]
[1744692796891,11.9286798,130.64,130.61,27.94]
[1744692797392,27.94,130.7,130.62,4.2723798]
[1744692797592,4.2723798,130.66,130.62,4.2723798]
[1744692797788,4.2723798,130.66,130.65,0.05780431]
[1744692799194,11.9271798,130.66,130.65,0.05780431]
[1744692804597,6.1441,130.71,130.65,4.33018411]
[1744692804792,4.2723798,130.69,130.65,4.33018411]
[1744692805199,11.9257798,130.69,130.65,4.33018411]
[1744692806203,11.9259798,130.68,130.65,0.05780431]
[1744692807301,4.2723798,130.68,130.65,7.71310431]
[1744692807600,4.2723798,130.68,130.65,11.98548411]
[1744692808302,4.2723798,130.68,130.65,4.33018411]
[1744692808502,4.2723798,130.67,130.65,0.05780431]
[1744692808699,4.2723798,130.68,130.65,0.05780431]
[1744692809000,11.9256798,130.69,130.65,11.98548411]
[1744692810097,7.6533,130.69,130.66,11.9271798]
[1744692810297,11.9256798,130.69,130.65,4.33018411]
[1744692810497,7.6536,130.68,130.65,11.98528411]
[1744692811102,11.9259798,130.68,130.65,0.05780431]
[1744692812804,7.6536,130.68,130.65,0.05780431]
[1744692813005,11.9259798,130.68,130.65,0.05780431]
[1744692813204,7.6532,130.69,130.65,11.98548411]
[1744692813407,11.9255798,130.69,130.65,11.98548411]
[1744692813704,7.6532,130.69,130.65,11.98548411]
[1744692814006,7.6538,130.68,130.65,11.98548411]
[1744692814207,4.2723798,130.68,130.65,4.33018411]
[1744692815305,11.9262798,130.68,130.65,4.33018411]
[1744692815705,7.6539,130.68,130.65,4.33018411]
[1744692816005,11.9262798,130.68,130.65,4.33018411]
[1744692817503,11.9262798,130.68,130.65,0.05780431]
[1744692819108,7.6539,130.68,130.65,0.05780431]
[1744692819305,11.9262798,130.68,130.65,0.05780431]
[1744692820308,7.6543,130.67,130.65,0.05780431]
[1744692821507,11.9262798,130.68,130.65,0.05780431]
[1744692824912,11.9262798,130.68,130.65,7.71320431]
[1744692825306,7.6531,130.69,130.65,0.05780431]
[1744692825513,4.2723798,130.71,130.67,4.2723798]
[1744692825707,4.2723798,130.69,130.68,28.09588732]
[1744692825910,7.653,130.7,130.68,28.09588732]
[1744692826110,11.9253798,130.7,130.68,28.09588732]
[1744692826311,4.2723798,130.7,130.68,28.09588732]
[1744692826811,4.2723798,130.69,130.68,28.09588732]
[1744692827210,11.9253798,130.69,130.68,0.05588732]
[1744692827403,4.2723798,130.69,130.68,0.05588732]
[1744692829511,11.9252798,130.7,130.68,0.05588732]
[1744692829713,4.2723798,130.71,130.68,0.05588732]
[1744692829911,4.1834,130.72,130.68,32.36826712]
[1744692830111,4.2723798,130.73,130.68,32.36826712]
[1744692830306,4.2723798,130.72,130.68,32.3123798]
[1744692830503,4.2723798,130.7,130.69,0.05519074]
[1744692831313,11.9244798,130.71,130.69,0.05519074]
[1744692833315,11.9247798,130.7,130.69,0.05519074]
[1744692833619,4.2723798,130.7,130.69,0.05519074]
[1744692834317,4.2723798,130.71,130.69,0.05519074]
[1744692834515,7.6516,130.72,130.69,0.05519074]
[1744692834716,28.04,130.76,130.69,4.32757054]
[1744692835010,4.2723798,130.73,130.69,4.32757054]
[1744692835213,4.2723798,130.73,130.7,7.6521]
[1744692836013,11.9231798,130.73,130.7,7.6521]
[1744692837319,4.2723798,130.72,130.69,11.98027054]
[1744692837619,11.9231798,130.73,130.69,11.98027054]
[1744692838420,4.2723798,130.73,130.7,7.6523]
[1744692838613,4.2723798,130.73,130.7,4.2723798]
[1744692838816,4.2723798,130.74,130.7,4.2723798]
[1744692839015,4.2723798,130.74,130.71,35.6715]
[1744692839919,4.2723798,130.74,130.71,39.9438798]
[1744692840322,11.9224798,130.74,130.71,39.9438798]
[1744692840721,11.9224798,130.74,130.71,32.2923798]
[1744692840917,4.2723798,130.73,130.71,28.02]
[1744692841115,4.2723798,130.73,130.71,28.07547168]
[1744692841316,4.2723798,130.74,130.71,35.72697168]
[1744692842121,11.9224798,130.74,130.71,35.72697168]
[1744692843624,11.9233798,130.73,130.71,28.07547168]
[1744692847326,4.2723798,130.73,130.71,28.07547168]
[1744692847726,11.9227798,130.74,130.71,28.07547168]
[1744692847925,7.6508,130.73,130.71,28.07547168]
[1744692848225,6.2765,130.77,130.71,35.72707168]
[1744692848421,4.2723798,130.74,130.71,39.99945148]
[1744692848822,4.2723798,130.73,130.71,28.07547168]
[1744692849117,6.2765,130.77,130.72,4.2723798]
[1744692849328,10.5488798,130.77,130.73,4.2723798]
[1744692849728,6.2765,130.77,130.74,0.05637462]
[1744692849926,4.2723798,130.75,130.71,28.02]
[1744692850131,27.96,130.76,130.71,28.02]
[1744692850331,4.2723798,130.72,130.68,27.96]
[1744692850531,4.2723798,130.7,130.67,35.6139]
[1744692850934,0.04839951,130.7,130.68,7.6533]
[1744692852140,0.04839951,130.7,130.67,39.93791459]
[1744692852632,0.04839951,130.7,130.67,32.28401459]
[1744692852938,0.04839951,130.7,130.68,7.6536]
[1744692853137,0.04839951,130.7,130.67,32.28401459]
[1744692853337,7.70089951,130.7,130.67,39.93791459]
[1744692853537,0.04839951,130.7,130.67,39.93791459]
[1744692854938,7.70079951,130.7,130.67,39.93791459]
[1744692856841,0.04839951,130.7,130.67,39.93791459]
[1744692857042,0.04839951,130.7,130.68,7.6535]
[1744692858746,7.70109951,130.7,130.67,39.93791459]
[1744692858947,4.2723798,130.69,130.67,28.01163479]
[1744692859143,0.04839951,130.7,130.67,32.28401459]
[1744692860246,4.2723798,130.69,130.67,28.01163479]
[1744692862340,4.2723798,130.69,130.67,0.05163479]
[1744692863846,11.9254798,130.69,130.67,0.05163479]
[1744692866945,11.9259798,130.68,130.67,0.05163479]
[1744692867150,4.2723798,130.64,130.61,27.96]
[1744692867447,11.9286798,130.64,130.61,27.96]
[1744692867947,7.6566,130.63,130.61,27.96]
[1744692868148,4.2723798,130.62,130.61,0.0491114]
[1744692868648,11.9294798,130.62,130.61,0.0491114]
[1744692869248,4.2723798,130.59,130.55,27.96]
[1744692869450,4.2723798,130.57,130.55,27.96]
[1744692869651,11.9321798,130.58,130.55,27.96]
[1744692870251,11.9880224,130.58,130.55,28.01285627]
[1744692871451,11.9879224,130.58,130.55,28.01285627]
[1744692871751,4.3282224,130.58,130.55,28.01285627]
[1744692872052,11.9878224,130.58,130.55,28.01285627]
[1744692872351,4.2723798,130.57,130.55,28.01285627]
[1744692872651,0.0558426,130.58,130.55,32.28523607]
[1744692872854,0.0558426,130.58,130.56,4.2723798]
[1744692873152,0.0558426,130.58,130.56,11.9328798]
[1744692873453,0.0558426,130.58,130.57,4.2723798]
[1744692873752,4.2723798,130.64,130.6,4.2723798]
[1744692873948,11.9287798,130.64,130.6,4.2723798]
[1744692874655,0.05054347,130.63,130.61,0.05878215]
[1744692875757,11.97952327,130.63,130.61,0.05878215]
[1744692876850,0.05054347,130.63,130.61,0.05878215]
[1744692877354,4.32292327,130.63,130.61,0.05878215]
[1744692877656,11.9294798,130.62,130.61,0.05878215]
[1744692877857,4.2723798,130.62,130.61,0.05878215]
[1744692878356,4.32292327,130.63,130.61,0.05878215]
[1744692878547,0.05054347,130.63,130.61,0.05878215]
[1744692879553,4.32292327,130.63,130.61,0.05878215]
[1744692880160,4.2723798,130.62,130.61,0.05878215]
[1744692881661,11.9294798,130.62,130.61,0.05878215]
[1744692882360,7.6571,130.62,130.61,0.05878215]
[1744692883258,11.97972327,130.63,130.61,0.05878215]